Cogmind - Beta 16.1 @@@ ROGUE MODE // 2026.04.23 @ 15:54:06 Player: Tibo Result: Destroyed by 8R-AWN with 8R-AWN's Boregun Performance ------------- Evolutions (0) 0 Regions Visited (3) 600 Robots Destroyed (31) 155 Value Destroyed (323) 323 Prototype IDs (2) 40 Alien Tech Used (0) 0 Bonus (48) 48 TOTAL SCORE: 1166 Bonus ------- Follower Combat Kills 74 Friendly Fire -26 Cogmind --------- Core Integrity 0/250 Matter 256/300 Energy 119/160 System Corruption 1% Temperature Warm (137) Movement Rolling (115) Ox1 Location -10/Exiles Parts ------- > --- POWER (1) -------- Light Nuclear Core > --- PROPULSION (2) --- Compact Wheel > --- UTILITY (2) ------ Small Storage Unit ECM Suite > --- WEAPON (2) ------- Ion Cannon Heavy Battle Rifle > --- INVENTORY (8) ---- Aluminum Leg Scrap Suit Reactive Plating Particle Gun Mining Laser Peak State ------------ > --- POWER ------------ Light Nuclear Core > --- PROPULSION ------- Aluminum Leg Aluminum Leg > --- UTILITY ---------- Small Storage Unit ECM Suite > --- WEAPON ----------- Ion Cannon Heavy Battle Rifle > --- INVENTORY -------- Light Ion Engine Aluminum Leg Compact Wheel Scrap Suit EM Pulse Gun Mining Laser [Rating: 15] Favorites ----------- Power Light Nuclear Core Engine Light Ion Engine Power Core Light Nuclear Core Propulsion Aluminum Leg Treads Light Treads Leg Aluminum Leg Wheel Compact Wheel Utility Small Storage Unit Device ECM Suite Storage Small Storage Unit Weapon Light Assault Rifle Energy Gun Particle Gun Energy Cannon Ion Cannon Ballistic Gun Light Assault Rifle Build | -11 -10 -10 -10 ------- Run | Yrd Mat Min Exi Slots Evolved . | . . . . Power . | . . . . Propulsion . | . . . . Utility . | . . . . Weapon . | . . . . Parts Attached 27 | 9 7 9 2 Power 8 | 2 3 2 1 Engine 5 | 2 3 . . Core 3 | . . 2 1 Reactor . | . . . . Propulsion 8 | 3 . 4 1 Treads 1 | 1 . . . Leg 5 | 2 . 3 . Wheel 2 | . . 1 1 Hover . | . . . . Flight . | . . . . Utility 3 | 2 1 . . Device 2 | 1 1 . . Storage 1 | 1 . . . Processor . | . . . . Hackware . | . . . . Protection . | . . . . Artifact . | . . . . Weapon 8 | 2 3 3 . Energy Gun 3 | 1 1 1 . Energy Cannon 1 | . . 1 . Ballistic Gun 4 | 1 2 1 . Ballistic Cannon . | . . . . Launcher . | . . . . Special Weapon . | . . . . Impact Weapon . | . . . . Slashing Weapon . | . . . . Piercing Weapon . | . . . . Special Melee Weapon . | . . . . Unidentified Prototypes . | . . . . Parts Lost 8 | . 2 3 3 Power 2 | . 1 . 1 Propulsion 4 | . . 2 2 Utility . | . . . . Weapon 2 | . 1 1 . Highest Loss Streak 3 | . 2 2 3 To Critical Strikes 1 | . . . 1 Average Backups 7 | 4 7 7 6 Power . | . . 1 . Propulsion 2 | 1 2 1 1 Utility 1 | . 2 1 2 Weapon 2 | 1 2 2 2 Tool/Special . | . . . . Unused Backups 14 | . 5 5 4 Power 2 | . . 2 . Propulsion 5 | . 4 . 1 Utility 4 | . 1 1 2 Weapon 3 | . . 2 1 Tool/Special . | . . . . Average Slot Usage (%) 99 | . 99 99 98 Engine 4 | . 13 1 . Core 9 | . . 12 13 Leg 27 | . 28 27 26 Device 14 | . 14 14 14 Storage 14 | . 14 14 14 Energy Gun 6 | . 4 7 . Energy Cannon 5 | . . 6 14 Ballistic Gun 16 | . 23 14 14 Peak Build Rating 15 | 7 7 15 15 Average Rating 10 | 5 6 12 14 On Entrance 7 | . 7 7 15 Avg Prop Armor Cover (%) 24 | 24 . . . Naked Turns . | . . . . Heaviest Build 22 | 12 13 22 22 Greatest Support 20 | 20 20 20 20 Greatest Overweight (x) 1 | . . 1 1 Average Overweight (x) . | . . . 1 Largest Inventory Capacity 8 | 8 8 8 8 Average Capacity 7 | 7 8 8 8 Most Carried 8 | 8 8 8 8 Average Carried 7 | 4 7 7 7 Final Capacity 8 | 8 8 8 8 Final Carried 8 | 8 8 8 6 Class Distribution -------------------- 73% | Mutant 26% | Scavenger-Mutant Dominant Class ---------------- Mutant | -10/Materials Mutant | -10/Mines Mutant | -10/Exiles Resources | -11 -10 -10 -10 ----------- Run | Yrd Mat Min Exi Matter Collected 722 | 400 191 131 . Remotely . | . . . . Salvage Created 800 | 214 338 172 76 Parts 66 | 18 31 17 . Haulers Intercepted 1 | . 1 . . Recyclers Shooed 3 | . 2 1 . Parts Field Recycled . | . . . . Retrieved Matter . | . . . . Parts Self-Destructed . | . . . . Prevented . | . . . . Parts Restored . | . . . . Kills | -11 -10 -10 -10 ------- Run | Yrd Mat Min Exi Combat Hostiles Destroyed 17 | . 10 2 5 Guns 13 | . 10 1 2 Cannons 3 | . . . 3 AOE 1 | . . 1 . Classes Destroyed 8 | 3 4 . 1 Worker 6 | 2 2 2 . Tunneler 8 | 5 . 3 . Hauler 1 | . 1 . . Recycler 1 | 1 . . . Watcher 3 | . 3 . . Swarmer 9 | . 9 . . Grunt 3 | . 1 2 . Assembled 5 | . . . 5 Best Kill Streak 6 | 3 6 2 5 Combat Bots Only 5 | . 3 1 5 Max Kills in Single Turn 2 | 2 1 1 2 Gunslinging . | . . . . Exploded 1 | . . 1 . Melee . | . . . . Uniques/NPCs Destroyed . | . . . . Combat | -11 -10 -10 -10 -------- Run | Yrd Mat Min Exi Hostile Shots Fired 113 | . 50 23 40 Missed 29 | . 15 5 9 Hits 84 | . 35 18 31 Melee 2 | . . . 2 Projectile 82 | . 35 18 29 Critical Strikes 7 | . . . 7 Part Disruptions 1 | . . 1 . Damage Taken 1246 | 59 317 290 580 Core 264 | . 35 51 178 Absorbed by Shields . | . . . . Core Remaining (%) 100 | 100 . . . Volleys Fired 131 | 34 68 17 12 Largest 2 | 2 2 2 2 Hottest 93 | 60 60 93 93 Shots Fired 221 | 41 130 27 23 Gun 208 | 41 130 25 12 Cannon 13 | . . 2 11 Launcher . | . . . . Special . | . . . . Kinetic 187 | 34 125 16 12 Thermal 17 | . . 6 11 Explosive . | . . . . Electromagnetic 17 | 7 5 5 . Robot Hit Streak 10 | 10 8 8 6 Robot Miss Streak 8 | 3 8 3 3 Penetration Max . | . . . . Secondary Targets 1 | . 1 . . Max Gunslinging Chain 1 | . 1 . . Shots Hit Robots 117 | 29 60 17 11 Core Hits 62 | 12 30 12 8 Critical Kills 1 | . . . 1 Critical Parts Destroyed 1 | . 1 . . Critical Strikes 3 | . 1 1 1 Burn 1 | . . 1 . Destroy 2 | . 1 . 1 Melee Attacks . | . . . . Impact . | . . . . Slashing . | . . . . Piercing . | . . . . Sneak Attacks . | . . . . Combat Hostiles . | . . . . Follow-up Attacks . | . . . . Damage Inflicted 1390 | 384 500 271 235 Guns 1067 | 271 500 156 140 Cannons 141 | . . 46 95 Explosions 182 | 113 . 69 . Melee . | . . . . Ramming . | . . . . Kinetic 896 | 199 474 83 140 Thermal 371 | 113 . 163 95 Explosive . | . . . . Electromagnetic 123 | 72 26 25 . Impact . | . . . . Slashing . | . . . . Piercing . | . . . . Highest Corruption 1 | . 1 1 1 Average Corruption 1 | . 1 1 1 Corruption Purged . | . . . . Corruption Blocked . | . . . . Effects 12 | . 1 9 2 Message Errors 4 | . . 4 . Matter Fused 2 | . . 2 . Heat Flow Errors 1 | . . 1 . Energy Discharges 2 | . . 1 1 Parts Fused 1 | . . . 1 Data Loss (major) 2 | . 1 1 . Overload Shots . | . . . . Overflow Damage . | . . . . Projectiles . | . . . . Explosions . | . . . . Melee . | . . . . Knockbacks . | . . . . Impact . | . . . . Kinetic . | . . . . Secondary . | . . . . Self-Inflicted Damage 86 | 59 . 27 . Shots 3 | 2 . 1 . Rammed . | . . . . Targets Rammed . | . . . . Kicked . | . . . . Crushed . | . . . . Highest Temperature 353 | 40 20 126 353 Average Temperature 91 | 20 15 39 198 Received Heat Transfer 135 | . 6 129 . Effects 2 | . . . 2 Interference 2 | . . . 2 Siege Activations . | . . . . Martial Activations . | . . . . Shielding Activations . | . . . . Robots Disrupted . | . . . . Combat Hostiles . | . . . . Robots Corrupted . | . . . . Combat Hostiles . | . . . . Parts Fried . | . . . . Impact Corruptions . | . . . . Robots Melted . | . . . . Combat Hostiles . | . . . . Parts Melted . | . . . . Heat Transferred 575 | 100 . 309 166 Parts Sabotaged . | . . . . Parts Stolen . | . . . . Parts Stripped . | . . . . Power Chain Reactions 3 | 2 . 1 . Alert | -11 -10 -10 -10 ------- Run | Yrd Mat Min Exi Maximum Alert Level . | . . . . Low Security (%) 100 | 100 100 100 . Level 1 . | . . . . Level 2 . | . . . . Level 3 . | . . . . Level 4 . | . . . . Level 5 . | . . . . High Security . | . . . . Max Security . | . . . . Peak Influence 115 | 15 115 58 . Initial 1 | . . 1 . Average 17 | 1 44 9 . Influence Increases 537 | 40 304 193 . Destroy 0b10 Robot/C 320 | . 200 120 . Destroy 0b10 Robot/NC 95 | 40 30 25 . Destroy Leader 78 | . 48 30 . Allied During Kill 16 | . . 16 . Successful Hack 26 | . 26 . . Destroy Structure 2 | . . 2 . Influence Decreases 537 | 40 298 199 . Entered New Map 5 | . . 5 . Time Decay 502 | 40 278 184 . Lost Part 30 | . 20 10 . Squads Dispatched 2 | . 2 . . Investigation 1 | . 1 . . Extermination . | . . . . Reinforcement 1 | . 1 . . Assault . | . . . . Garrison . | . . . . Intercept . | . . . . Searches Triggered . | . . . . Construction Impeded . | . . . . Haulers Reinforced . | . . . . Active Scanning Responses . | . . . . Cargo Convoy Interrupts . | . . . . Stealth | -11 -10 -10 -10 --------- Run | Yrd Mat Min Exi Distress Signals 1 | . 1 . . Communications Jammed . | . . . . Distress Signals . | . . . . Times Spotted 36 | . 16 11 9 Peak Tracking Total 9 | . 4 2 9 Tactical Retreats 5 | . 2 2 1 ECM-based Alert Blocks 6 | . 3 3 . Traps | -11 -10 -10 -10 ------- Run | Yrd Mat Min Exi Traps Triggered 1 | . 1 . . Indirectly . | . . . . Trap Hack Attempts . | . . . . Triggered . | . . . . Disarmed 6 | . 6 . . Reprogrammed . | . . . . Reused . | . . . . Traps Extracted . | . . . . Installed . | . . . . Triggered . | . . . . Machines | -11 -10 -10 -10 ---------- Run | Yrd Mat Min Exi Machines Disabled 3 | . . . 3 Max in Single Turn 2 | . . . 2 Machines Repaired . | . . . . Machines Dismantled . | . . . . Machines Sabotaged . | . . . . Overloaded Fab Kills . | . . . . Hacking | -11 -10 -10 -10 --------- Run | Yrd Mat Min Exi Machines Accessed 6 | . 5 1 . Terminals 5 | . 5 . . Fabricators . | . . . . Repair Stations . | . . . . Recycling Units . | . . . . Scanalyzers . | . . . . Garrison Access . | . . . . Total Hacks 17 | . 16 1 . Successful 10 | . 9 1 . Failed 7 | . 7 . . Catastrophic . | . . . . Database Lockouts . | . . . . Manual 11 | . 11 . . Terminals 16 | . 16 . . Fabricators . | . . . . Repair Stations . | . . . . Recycling Units . | . . . . Scanalyzers . | . . . . Garrison Access . | . . . . Terminal Hacks 9 | . 8 1 . Record 1 | . 1 . . Prototype ID Bank 1 | . 1 . . Open Door 1 | . . 1 . Level Access Points 1 | . 1 . . Alert Level 1 | . 1 . . Locate Traps 1 | . 1 . . Disarm Traps 1 | . 1 . . Registered Components 1 | . 1 . . Zone Layout 1 | . 1 . . Fabricator Hacks . | . . . . Repair Station Hacks . | . . . . Recycling Unit Hacks . | . . . . Scanalyzer . | . . . . Garrison Access Hacks . | . . . . Unauthorized Hacks 1 | . 1 . . Terminals 1 | . 1 . . Assimilate 1 | . 1 . . Fabricators . | . . . . Repair Stations . | . . . . Recycling Units . | . . . . Scanalyzers . | . . . . Garrison Access . | . . . . Data Cores Recovered . | . . . . Used . | . . . . Hacking Detections 3 | . 3 . . Full Trace Events 2 | . 2 . . Feedback Events 1 | . 1 . . Corruption 1 | . 1 . . Feedback Blocked . | . . . . Robot Schematics Acquired . | . . . . Robots Built . | . . . . Authchips . | . . . . Time . | . . . . Total Robot Build Rating . | . . . . Part Schematics Acquired . | . . . . Parts Built . | . . . . Authchips . | . . . . Time . | . . . . Total Part Build Rating . | . . . . Part Studies Acquired . | . . . . Parts Repaired . | . . . . Time . | . . . . Parts Recycled . | . . . . Recycled Matter . | . . . . Retrieved Matter . | . . . . Retrieved Components . | . . . . Parts Scanalyzed . | . . . . Part Schematics Acquired . | . . . . Parts Damaged . | . . . . Bothacking | -11 -10 -10 -10 ------------ Run | Yrd Mat Min Exi Used RIF Installer . | . . . . Robots Hacked . | . . . . Non-combat . | . . . . Combat . | . . . . Robot Hacks Applied . | . . . . Relay Couplers Released . | . . . . Fabnet Peak Effective % . | . . . . Robots Rewired . | . . . . Allies Hacked . | . . . . Hacks Repelled . | . . . . Allies | -11 -10 -10 -10 -------- Run | Yrd Mat Min Exi Total Allies 3 | . . 3 . Largest Group 3 | . . 3 3 Highest-Rated Group 40 | . . 40 40 Highest-Rated Ally 16 | . . 16 16 Total Orders . | . . . . Ally Attacks 29 | . . 14 15 Total Damage 270 | . . 133 137 Kills 6 | . . 4 2 Allies Corrupted . | . . . . Allies Melted . | . . . . Intel | -11 -10 -10 -10 ------- Run | Yrd Mat Min Exi Active Infowar (turns) 2566 | 62 676 1594 234 Seismic 221 | 62 159 . . ECM 2345 | . 517 1594 234 Robot Analysis Total . | . . . . Derelict Logs Recovered 1 | . . 1 . Drone Launches . | . . . . Drone Recoveries . | . . . . Exploration | -11 -10 -10 -10 ------------- Run | Yrd Mat Min Exi Turns Passed 2803 | 299 676 1594 234 Spaces Moved 1636 | 172 399 960 105 Core 2 | 2 . . . Treads 2 | 2 . . . Legs 1620 | 168 399 957 96 Wheels 12 | . . 3 9 Hover . | . . . . Flight . | . . . . Fastest Speed 50 | 50 120 100 115 Average Speed 138 | 119 120 145 183 Slowest Speed 190 | 160 120 190 190 Overloaded Moves . | . . . . Propulsion Burnouts . | . . . . Robots Hopped . | . . . . Potential Cave-ins . | . . . . Cave-ins Triggered . | . . . . Exploration Rate (%) 47 | 5 63 98 24 Regions Visited 3 Branch Regions 2 Pre-discovered Areas . | . . . . Known Exits Taken . | . . . . Unknown Exits Taken 3 | 1 1 1 . Scrap Searched 1 | . . 1 . Spaces Dug . | . . . . Terrain Destroyed 10 | 8 . 2 . Melee . | . . . . Projectile . | . . . . AOE 10 | 8 . 2 . Terrain Rammed . | . . . . Walls Destroyed . | . . . . Machines Disabled . | . . . . Actions | -11 -10 -10 -10 --------- Run | Yrd Mat Min Exi Total 1988 | 228 495 1142 123 Wait 144 | . 7 137 . Move 1633 | 171 398 959 105 Hop . | . . . . Pick Up 23 | 10 7 6 . Fast Attach 10 | 7 . 3 . Attach 6 | 1 2 1 2 Detach 1 | 1 . . . Swap 14 | 2 5 7 . Drop 22 | 2 8 12 . Fire 131 | 34 68 17 12 Melee . | . . . . Ram . | . . . . Kick . | . . . . Crush . | . . . . Escape Stasis . | . . . . Rewire 4 | . . . 4 Trap . | . . . . Miscellaneous . | . . . . Route ------- -11/Scrapyard -10/Materials (discovered 4 exits: *Mat x3 / *Min) -10/Mines (discovered 4 exits: *Mat x2 / [*Exi] / [*Sub]) -10/Exiles (discovered 1 exit: [*Min]) History --------- Turn | Location | Event 57 | -11/Scrapyard | Discovered new exit (range 15) 300 | -11/Scrapyard | Entered Materials 301 | -10/Materials | Build established: Mutant 577 | -10/Materials | Discovered new exit (range 7) 617 | -10/Materials | Discovered new exit (range 11) 646 | -10/Materials | Identified exit to Materials 976 | -10/Materials | Entered Mines 1015 | -10/Mines | Met a Derelict bent on vengeance 1189 | -10/Mines | Discovered exit to Materials (range 6) 1437 | -10/Mines | Build established: Scavenger-Mutant 1460 | -10/Mines | Found a Scrap Suit stashed away for nefarious purposes 1471 | -10/Mines | Found Scrap Suit 1490 | -10/Mines | Learned 2 Materials zone layouts 1550 | -10/Mines | Assisted by bots powering up and referring to "LRC-V3" 1579 | -10/Mines | Deemed a non-threat by the Exiles lab entrance 1580 | -10/Mines | Discovered new exit (range 5) 1612 | -10/Mines | Discovered new exit (range 4) 1723 | -10/Mines | A weapon hastily lodged in a ceiling crevice suddenly fell to the ground 1879 | -10/Mines | Met a Derelict who couldn't figure out how to use a Trap Extractor 2054 | -10/Mines | Discovered exit to Materials (range 9) 2186 | -10/Mines | Build established: Mutant 2394 | -10/Mines | Found DCF Scrap (14 items) 2570 | -10/Mines | Entered Exiles 2570 | -10/Exiles | Accompanied by 3 allies 2607 | -10/Exiles | Discovered new exit (range 15) 2667 | -10/Exiles | Met 8R-AWN 2719 | -10/Exiles | Met EX-HEX 2754 | -10/Exiles | Attacked by the Exiles 2775 | -10/Exiles | Core integrity fell below 50% 2800 | -10/Exiles | Core integrity fell below 20% 2804 | -10/Exiles | Destroyed by 8R-AWN with 8R-AWN's Boregun Last Messages --------------- 02790_ Penetrated by HV Slug. 02790_ Critical hit (Destroy). 02790_ Aluminum Leg destroyed. 02790_ HV Slug penetrates Wall. 02790_ Penetrated by HV Slug. 02790_ HV Slug penetrates BIN's Workstation. 02790_ BIN's Workstation disabled. 02792_ Overheating: System interference. 02792_ Ion Cannon temporarily disabled. 02792_ Hvy. Battle Rifle temporarily disabled. 02792_ Penetrated by HV Slug. 02795_ Aluminum Leg destroyed. 02795_ HV Slug penetrates Machine. 02795_ Penetrated by HV Slug. 02795_ HV Slug penetrates Wall. 02799_ Penetrated by HV Slug. 02799_ HV Slug penetrates Wall. 02799_ Penetrated by HV Slug. 02799_ HV Slug penetrates Wall. 02804_ Penetrated by HV Slug. Map ----- +----------------------------------------------------+ | ?????????????????????????????????????????????????? | | ?????????????????????????????????????????????????? | | ?????????????????????????????????????????????????? | | ?????????????????????????????????????????????????? | | ?????????????????????????????????????????????????? | | ?????????????????????????????????????????????????? | | ?????????????????????????????????????????????????? | | ?????????????????????????????????????????????????? | | ?????????????????????????????????????????????????? | | ?????????????????????????????????????????????????? | | ?????????????????????????????????????????????????? | | ?????????????????????????????????????????????????? | | ?????????????????????????????????????????????????? | | ???????????????? ??????????????????????????????? | | ????????????????? ?????????????????????????????? | | ????????????????? ????????????????????????????? | | ?????????????????? "???????????????????????????? | | ?????????????????? ""??????????????????????????? | | ???????????????????" "??????????????????????????? | | ???????????????????? ??????????????????????????? | | ????????????????????? "?????????????????????????? | | ??????????????????????;;?????????????????????????? | | ??????????????????????# #????????????????????????? | | ??????????????????????# ##??????????????????????? | | ???????????????????????# #??????????????????????? | | ????????????????????#####@#####??????????????????? | | ????????????????#####"""" " "##?????????????????? | | ??????????????? " " ""##????????????????? | | ??????????????? " #????????????????? | | ????????????? " ""#????????????????? | | ????????????? % #???????????#####? | | ????????????? g ##?????????##" #? | | ????????????? %% ###???????#" #? | | ?????????????? %=%"""#??????##" ## | | ?????????????" ==[! "#????### # | | ??????????????#""" % ##???# | | ????????????????""" % ##?## | | ?????????????????""" "## | | ????????????????"" % ## | | ????????????????""" #### | | ??????????????? % ""#?#""" | | ??????????????? % #"""##?#### | | ???????????????? ######?????? | | ???????????????? ##??????????? | | ???????????????? " ##???????????? | | ????????????????? " " ""#????????????? | | ????????????????? " " ""#" "##????????????? | | ??????????????????""" """##"" """"##?????????????? | | ????????????????????""????#########??????????????? | | ?????????????????????????????????????????????????? | +----------------------------------------------------+ Best States ------------- Heat Dissipation 25 Energy Generation 14 Energy Capacity 160 Matter Stores 300 Matter Capacity 300 Sight Range 16 Terrain Scan Density 10 ECM Strength 1 Evasion (%) 55 Item Schematics ----------------- None Robot Schematics ------------------ None Fabricated ------------ Nothing Repaired ---------- Nothing Studied --------- None Alien Tech Used ----------------- None Achievements -------------- Ghost 'Em Challenges ------------ None Game ------ Seed CryofiberCombatRouter Manual? 0 Play Time 00:30:44 Cumulative 28.3 hours Start 2026.04.23 @ 15:22:27 End 2026.04.23 @ 15:54:06 Sessions 1 Manual Loads 0 Difficulty Rogue Special Mode None Game No. 37 Rogue 37 Adventurer 0 Explorer 0 Win Type - Total 0 Types 0/0/0/0/0/0/0/0/0/0 Lore% 17 Gallery% 26 Achievement% 21 Wizard Run 0 Options --------- Layout 1 ASCII 0 Keyboard 1 Movement Numpad Keybinds 0 Fullscreen 0 Font 28/SmallcapsGlow Map View 90x40 Zoom Use 0% Tactical HUD 1 Map Filters NONE Filters NONE Steam 1 RUN: 3b673a3b-f446-49ab-a6f6-ac37859ae27f